[Event "Romanian Championship 2024"]
[Site "Eforie Nord"]
[Date "2024.02.29"]
[Round "7.7"]
[White "Magold, Filip"]
[Black "Tudor, Henry Edward"]
[Result "1-0"]
[ECO "A14"]
[WhiteElo "2400"]
[BlackElo "2239"]
[Annotator "TA"]
[PlyCount "63"]
[EventDate "2024.02.24"]
[EventType "swiss"]
[EventCountry "ROU"]
[SourceTitle "playchess.com"]
[Source "ChessBase"]
[SourceQuality "1"]
[TimeControl "40/5400+30:900+30"]

{[%evp 19,63,0,1,0,3,18,48,0,21,12,52,35,61,69,42,53,257,270,252,252,323,309,356,353,345,345,697,743,747,737,754,691,1596,1464,1714,1745,1962,1676,29980,29963,29956,5381,29974,29976,29946,7158]} 1. c4 {[%emt 0:00:25]} Nf6 {[%emt 0:00:33]} 2. Nf3 {[%emt 0:00:17]} e6 {[%emt 0:00:05]} 3. g3 {[%emt 0:00:13]} d5 {[%emt 0:00:59]} 4. Bg2 {[%emt 0:00:06]} Be7 {[%emt 0:00:08]} 5. O-O {[%emt 0:00:11]} O-O {[%emt 0:00:07]} 6. b3 {[%emt 0:00:42]} d4 {[%emt 0:05:16]} 7. e3 {[%emt 0:02:47]} c5 {[%emt 0:01:09]} 8. exd4 {[%emt 0:00:05]} cxd4 {[%emt 0:00:06]} 9. d3 {[%emt 0:00:05]} Nc6 {[%emt 0:09:11]} 10. Re1 {[%emt 0:06:45]} Nd7 {[%emt 0:06:54][%cal Bf6d7,Bd7c5,Bc5a4][%mdl 32]} 11. Na3 {[%emt 0:02:18]} e5 {[%emt 0:07:27]} 12. Nc2 {[%emt 0:02:11][%cal Ob3b4]} f6 {[%emt 0:11:10]} 13. a3 {[%emt 0:03:11]} (13. Nh4 $14) 13... a5 {[%emt 0:06:05]} 14. Rb1 $1 {[%emt 0:00:09]} Nc5 {[%emt 0:02:44]} 15. b4 {[%emt 0:00:15]} axb4 {[%emt 0:00:04]} 16. axb4 {[%emt 0:00:04][%cal Ba3b4,Bb4b5][%mdl 32]} Na4 {[%emt 0:00:06] ...Nc3 is the strong threat.} 17. Bd2 {[%emt 0:00:03]} Bf5 $2 {[%emt 0:07:25] Black cannot hold the game after this.} ({Black should try} 17... Bg4 $14) 18. b5 $18 {[%emt 0:00:13]} Nb8 {[%emt 0:22:17] [#]} 19. Nfxd4 $1 {[%emt 0:00:06][%mdl 512]} exd4 {[%emt 0:01:21]} (19... Bc8 20. Nb3) 20. Bxb7 {[%emt 0:00:44]} Ra7 {[%emt 0:01:28]} 21. Bd5+ {[%emt 0:00:06]} Kh8 {[%emt 0:00:04]} 22. Nxd4 {[%emt 0:00:04]} Bxd3 {[%emt 0:08:00]} (22... Bd7 23. Ra1 Bc5) 23. Ne6 {[%emt 0:00:21][%csl LRd8,LRf8]} Qc8 {[%emt 0:03:27]} 24. Ra1 {[%emt 0:05:25]} Bxc4 {[%emt 0:05:50] [#]} 25. Qg4 $1 {[%emt 0:02:12][%csl Ge6][%cal Rg4g7]} Bb4 {[%emt 0:00:02]} (25... Rg8 26. Bxc4) 26. Bxb4 {[%emt 0:00:35]} Bxd5 {[%emt 0:00:24]} 27. Bxf8 {[%emt 0:00:04]} Bxe6 {[%emt 0:00:58]} 28. Rxe6 {[%emt 0:02:02][%cal Oa1e1] Rae1! would kill now.} Qxf8 {[%emt 0:00:05]} 29. Rxa4 {[%emt 0:00:33]} Rc7 {[%emt 0:00:18]} 30. Rae4 {[%emt 0:00:07]} (30. Qe2 $142 Rc8 31. Ra7 Qg8 32. Qe4 h5 33. Ree7 h4 34. Rxg7 (34. Qxh4+ Qh7 $18) (34. gxh4 Nd7 $18) 34... Rc1+ 35. Kg2 h3+ 36. Kxh3 Qxg7 37. Qe8+ (37. Rxg7 Kxg7 38. Qe7+ Kg8 $18) 37... Kh7 38. b6 (38. Rxg7+ Kxg7 39. Qxb8 Re1 $18) (38. Qxb8 Kh6 $18)) 30... Rc1+ {[%emt 0:00:07]} 31. Kg2 {[%emt 0:00:06]} Rc8 {[%emt 0:00:03]} 32. Qe2 {[%emt 0:00:03] Weighted Error Value: White=0.07 (flawless) /Black=1.11.  Loses game:     	---       	Black=1      Mistake:       	White=1     	Black=1      Inaccurate:     	---       	Black=3      OK:         	White=4     	Black=3      Best:        	White=4     	Black=1      Strong:       	White=1     	---} 1-0

[Event "Romanian Championship 2024"]
[Site "Eforie Nord"]
[Date "2024.02.29"]
[Round "7.8"]
[White "Vilcu, Matei-Stefan"]
[Black "Prisacaru, Stefan-Emilian"]
[Result "1/2-1/2"]
[ECO "B33"]
[WhiteElo "2176"]
[BlackElo "2289"]
[Annotator "TA"]
[PlyCount "46"]
[EventDate "2024.02.24"]
[EventType "swiss"]
[EventCountry "ROU"]
[SourceTitle "playchess.com"]
[Source "ChessBase"]
[SourceQuality "1"]
[TimeControl "40/5400+30:900+30"]

{[%evp 9,46,29,71,44,56,45,47,44,46,40,46,35,42,20,28,40,35,18,45,39,41,34,39,42,53,1,102,62,71,76,77,64,64,67,72,66,79,13,64]} 1. e4 {[%emt 0:00:02]} c5 {[%emt 0:00:04]} 2. Nf3 {[%emt 0:00:07]} Nc6 {[%emt 0:00:04]} 3. d4 {[%emt 0:00:08]} cxd4 {[%emt 0:00:05]} 4. Nxd4 {[%emt 0:00:03]} Nf6 {[%emt 0:00:06]} 5. Nc3 {[%emt 0:00:02]} h5 {[%emt 0:00:11]} 6. Nb3 {[%emt 0:07:00]} e6 {[%emt 0:04:52]} 7. a3 {[%emt 0:02:39]} Be7 {[%emt 0:05:26]} 8. Bf4 {[%emt 0:02:45] White is slightly better.} d6 {[%emt 0:08:42]} 9. Qd2 {[%emt 0:12:55]} e5 {[%emt 0:08:26]} 10. Bg5 {[%emt 0:02:12]} Be6 {[%emt 0:00:21]} 11. Bd3 {[%emt 0:07:58]} Ng4 {[%emt 0:10:56]} 12. Bxe7 {[%emt 0:01:31]} Qxe7 {[%emt 0:00:01]} 13. Nd5 {[%emt 0:11:06]} Bxd5 {[%emt 0:03:12]} 14. exd5 {[%emt 0:00:08]} Nb8 {[%emt 0:00:10][%cal Bc6b8,Bb8d7,Bd7f6][%mdl 32]} 15. O-O {[%emt 0:05:15]} Nd7 {[%emt 0:01:49]} 16. Rae1 {[%emt 0:01:42]} O-O {[%emt 0:15:58]} 17. f4 {[%emt 0:06:02]} ({White should play} 17. c4 $14) 17... Nh6 {[%emt 0:08:42]} (17... Qd8 $11 {remains equal.}) 18. Nd4 {[%emt 0:08:36] White is more active.} Nf6 {[%emt 0:07:38][%cal Of8e8]} 19. Nf3 {[%emt 0:06:34]} e4 {[%emt 0:11:47][%cal Of8e8]} 20. Ng5 {[%emt 0:03:18][%cal Rg5e4]} Qc7 {[%emt 0:00:04]} 21. Nxe4 {[%emt 0:03:12]} Nxe4 {[%emt 0:05:58]} 22. Rxe4 {[%emt 0:07:06]} Qb6+ {[%emt 0:02:03]} 23. Qf2 {[%emt 0:02:09]} (23. Qe3 $16 {And now Qxb6 would win.} Qxb2 24. Rb4) 23... Qxb2 {[%emt 0:00:57] Weighted Error Value: White=0.20 (precise) /Black=0.17 (very precise) .  Mistake:       	White=2     	Black=1      Inaccurate:     	White=1     	Black=1      OK:         	White=5     	Black=5      Best:        	---       	Black=1} 1/2-1/2

[Event "Romanian Championship 2024"]
[Site "Eforie Nord"]
[Date "2024.02.29"]
[Round "7.9"]
[White "Nastase, Robert-Paul"]
[Black "Bulmaga, Irina"]
[Result "0-1"]
[ECO "B43"]
[WhiteElo "2226"]
[BlackElo "2439"]
[Annotator "TA"]
[PlyCount "72"]
[EventDate "2024.02.24"]
[EventType "swiss"]
[EventCountry "ROU"]
[SourceTitle "playchess.com"]
[Source "ChessBase"]
[SourceQuality "1"]
[TimeControl "40/5400+30:900+30"]

{[%evp 16,72,67,65,59,57,100,0,166,182,315,318,307,316,439,383,579,370,380,185,195,64,66,69,675,648,902,624,766,302,302,275,293,268,275,277,242,172,219,232,208,227,202,214,562,167,174,-475,-473,-482,-494,-506,-505,-491,-474,-630,-639,-747,-736]} 1. e4 {[%emt 0:07:01]} c5 {[%emt 0:00:06]} 2. Nc3 {[%emt 0:00:04]} a6 {[%emt 0:00:06]} 3. g3 {[%emt 0:00:06]} b5 {[%emt 0:00:20]} 4. Bg2 {[%emt 0:00:03]} Bb7 {[%emt 0:00:08]} 5. Nge2 {[%emt 0:00:05]} e6 {[%emt 0:01:15]} 6. O-O {[%emt 0:00:12]} Qc7 {[%emt 0:03:54]} 7. d4 {[%emt 0:00:13]} cxd4 {[%emt 0:01:03]} 8. Nxd4 {[%emt 0:00:22]} Nc6 {[%emt 0:04:38]} 9. Re1 {[%emt 0:10:43][%cal Oc3d5]} Nxd4 {[%emt 0:24:11]} 10. Qxd4 {[%emt 0:00:13]} Nf6 {[%emt 0:09:02] [#] Prevents Nd5} 11. Nd5 {[%emt 0:02:00]} Nxd5 {[%emt 0:12:59]} (11... exd5 $11 12. exd5+ Kd8) 12. exd5 $18 {[%emt 0:00:10]} Rg8 {[%emt 0:06:54]} (12... Qc5 $142 13. Be3 Qxd4 14. Bxd4 Rc8) 13. Bf4 {[%emt 0:11:31]} Qc8 {[%emt 0:07:30]} 14. h4 {[%emt 0:01:56]} Qc5 {[%emt 0:09:57]} 15. Qd2 {[%emt 0:23:59] dxe6 is the strong threat.} Qc8 {[%emt 0:06:05]} (15... d6 $142 16. dxe6 Bxg2) 16. Rad1 {[%emt 0:03:57][%cal Oc2c4] c4! would now be deadly.} Be7 {[%emt 0:00:08]} 17. Bg5 {[%emt 0:02:17]} (17. Qe3 $142) 17... f6 {[%emt 0:03:18]} 18. d6 {[%emt 0:00:44]} ({Better is} 18. dxe6 $18 dxe6 19. Bh3) 18... Bxg2 $14 {[%emt 0:03:30][%cal Bb7g2,Bg2h3,Bh3e6][%mdl 32]} 19. Rxe6 $1 {[%emt 0:00:04]} (19. Kxg2 fxg5 20. dxe7 gxh4 $16) 19... Qc6 $2 {[%emt 0:00:06][%mdl 8192]} (19... dxe6 $14 20. d7+ (20. Kxg2 $2 {perishes.} Qc6+ 21. Kh2 Qxd6 $19) 20... Qxd7 21. Qxd7+ Kf7) 20. Rxe7+ $18 {[%emt 0:01:17] Black is weak on the dark squares} Kf8 {[%emt 0:01:15][%cal Og2h3] [#]} 21. f3 $1 {[%emt 0:02:59][%mdl 512]} Bh3 {[%emt 0:03:26][%cal Oc6f3]} (21... Qxf3 22. Re3) 22. Kh2 $2 {[%emt 0:08:25]} (22. Bxf6 {[%cal Od2g5] White wants to mate with Qg5!} Qxf3 23. Kh2) 22... Be6 {[%emt 0:00:33] [#]} 23. Bxf6 {[%emt 0:02:11][%mdl 512]} Re8 {[%emt 0:00:01][%cal Oc6f3] [#]} 24. Re1 $1 {[%emt 0:04:01][%cal Of6g7,Bd1e1,Be1e3,Be3d3][%mdl 32] Threatening mate with Bxg7+!} Rxe7 {[%emt 0:00:33]} 25. Bxe7+ {[%emt 0:01:14]} Ke8 {[%emt 0:00:00]} 26. Re3 {[%emt 0:01:13] Threatens to win with Rc3.} Qd5 {[%emt 0:00:24]} (26... Kf7 {is a better defense.} 27. a3 Qc5) 27. Rd3 {[%emt 0:01:18]} Qf5 {[%emt 0:01:02] [#]} 28. g4 $1 {[%emt 0:00:06]} Qe5+ {[%emt 0:00:53]} 29. f4 {[%emt 0:00:04]} Qe4 {[%emt 0:00:49]} (29... Qxb2 30. Rc3 Kf7) 30. f5 $2 {[%emt 0:02:50]} (30. Bg5 h6 31. Re3) 30... Bc4 {[%emt 0:00:01]} 31. Qe3 {[%emt 0:01:56][%mdl 8192]} (31. Rd4 $18 {avoids the disaster.} Qe5+ 32. Kg2 Bxa2 33. Qf2) 31... Bxd3 $19 {[%emt 0:00:11] Black is clearly winning.} 32. Qxd3 {[%emt 0:00:18]} Qxd3 {[%emt 0:00:04]} (32... Qxg4 33. Bg5 Rf8 34. Qe3+ Kf7 35. Qe7+ Kg8 36. Qxd7 $19) 33. cxd3 {[%emt 0:00:06]} Kf7 {[%emt 0:00:15]} 34. Kg3 {[%emt 0:01:59]} Rc8 {[%emt 0:00:04]} 35. g5 {[%emt 0:00:17]} Rc2 {[%emt 0:00:13]} 36. h5 {[%emt 0:02:21]} Rxb2 {[%emt 0:00:28] Weighted Error Value: White=1.23/Black=0.58.  Loses game:     	---       	Black=2      Missed win:     	White=1     	---        Mistake:       	White=4     	Black=4      Inaccurate:     	White=2     	Black=3      OK:         	White=5     	Black=8      Best:        	White=1     	Black=6      Strong:       	White=2     	---} 0-1

[Event "Romanian Championship 2024"]
[Site "Eforie Nord"]
[Date "2024.02.29"]
[Round "7.10"]
[White "Stoleriu, George"]
[Black "Daianu, Cristian-Clement"]
[Result "1/2-1/2"]
[ECO "B90"]
[WhiteElo "2391"]
[BlackElo "2201"]
[Annotator "TA"]
[PlyCount "50"]
[EventDate "2024.02.24"]
[EventType "swiss"]
[EventCountry "ROU"]
[SourceTitle "playchess.com"]
[Source "ChessBase"]
[SourceQuality "1"]
[TimeControl "40/5400+30:900+30"]

{[%evp 11,50,6,27,12,35,28,37,36,43,42,56,47,42,35,49,0,0,0,0,0,64,0,0,0,0,0,0,0,0,-97,-72,-177,-170,-493,0,0,0,-493,0,0,0]} 1. e4 {[%emt 0:03:33]} c5 {[%emt 0:02:43]} 2. Nf3 {[%emt 0:00:04]} d6 {[%emt 0:00:14]} 3. d4 {[%emt 0:00:05]} cxd4 {[%emt 0:00:05]} 4. Nxd4 {[%emt 0:00:05]} Nf6 {[%emt 0:00:06]} 5. Nc3 {[%emt 0:00:03]} a6 {[%emt 0:00:06]} 6. h3 {[%emt 0:00:04]} g6 {[%emt 0:10:44]} 7. Be3 {[%emt 0:01:21]} Bg7 {[%emt 0:00:18]} 8. Qd2 {[%emt 0:00:56]} O-O {[%emt 0:18:21]} 9. O-O-O {[%emt 0:02:21] White is slightly better.} Nc6 {[%emt 0:07:25]} 10. f3 {[%emt 0:08:27]} d5 {[%emt 0:07:59]} 11. exd5 {[%emt 0:25:43]} Nxd5 {[%emt 0:01:07]} 12. Nxc6 {[%emt 0:00:14]} bxc6 {[%emt 0:00:02]} 13. Nxd5 {[%emt 0:00:05]} (13. Bd4 $1 $14) 13... cxd5 $11 {[%emt 0:00:22]} 14. Qxd5 {[%emt 0:00:02]} Qc7 {[%emt 0:00:26]} 15. Qc5 {[%emt 0:16:42]} (15. Qxa8 $5 Bf5 $8 16. Qxf8+ (16. Qxa6 $2 Qxc2#) 16... Kxf8 17. Rd2 $15) 15... Qb8 {[%emt 0:16:57]} (15... Qg3 $1 $11) 16. Qa3 {[%emt 0:08:59] Active counter play!} (16. Qxe7 $2 Qxb2+ (16... Bxb2+ $2 17. Kd2 $19) 17. Kd2 Bc3+ (17... Qxa2 $2 18. Bd3 $19) 18. Ke2 Qxc2+ (18... Qxa2 $2 19. Kf2 $19) 19. Rd2 Bxd2 $19) ({Better is} 16. c3 $1 $14) 16... Qg3 {[%emt 0:08:26]} 17. Rg1 {[%emt 0:04:59]} (17. Qxe7 Bf5 18. Bd3 Rfe8 $19) 17... Rb8 {[%emt 0:01:29]} 18. c3 $1 {[%emt 0:00:24][%cal Oa3a5]} Be6 {[%emt 0:17:35]} 19. Bd3 {[%emt 0:02:37]} (19. Bxa6 $2 Ra8 20. Qa4 Bc8 $19) 19... Rfc8 {[%emt 0:00:02]} 20. Bc2 {[%emt 0:03:43] [#]} (20. Qa5 $11) 20... Rb5 $1 $17 {[%emt 0:02:59]} 21. Qxe7 {[%emt 0:18:01]} (21. Rge1 $17 {might work better.}) 21... Qb8 $1 $19 {[%emt 0:00:07]} 22. Rd2 $2 {[%emt 0:00:07]} (22. Qd6 Rxb2 (22... Bxa2 23. Qxb8 Rcxb8 24. Bf4 $16) 23. Qxb8 Rbxb8 24. Bd2 (24. Bf4 $2 Rb5 $19) 24... Bxa2 25. Rde1) 22... Bf8 {[%emt 0:02:15]} (22... Bxa2 $2 23. Rgd1 Rf8 24. Rd8 $18) 23. Qf6 {[%emt 0:00:20]} (23. Qa7 Rxb2 24. Qxb8 Rbxb8 $17) 23... Bg7 $1 {[%emt 0:01:11] Dodges Bd4} (23... Rxb2 24. Bd4) 24. Qe7 {[%emt 0:00:10] [#] Hoping for Rgd1.} (24. Qf4 Be5 (24... Bxa2 25. Qxb8 Rcxb8 26. Bd3 $16) 25. Qh4 Rxb2 $17) 24... Bf8 $2 {[%emt 0:00:27]} (24... Bxa2 $2 {perishes.} 25. Rgd1 Rf8 26. Rd8 $18) (24... Rxb2 $19 25. Ba7 Qf4) 25. Qf6 $11 {[%emt 0:00:58]} ({But not} 25. Qa7 Rxb2 26. Qxb8 Rbxb8 $17) 25... Bg7 $1 {[%emt 0:00:23] Prevents Bd4.   Weighted Error Value: White=0.41/Black=0.57.  Missed win:     	---       	Black=1      Mistake:       	White=5     	Black=1      OK:         	White=5     	Black=6      Best:        	White=1     	---        Strong:       	White=1     	Black=4} (25... Rxb2 26. Bd4 Rxc2+ 27. Kxc2) 1/2-1/2

[Event "Romanian Championship 2024"]
[Site "Eforie Nord"]
[Date "2024.02.29"]
[Round "7.11"]
[White "Nastore, Pavel-Alexandru"]
[Black "Secheres, Adrian-Simion"]
[Result "1/2-1/2"]
[ECO "C79"]
[WhiteElo "2182"]
[BlackElo "2371"]
[Annotator "TA"]
[PlyCount "85"]
[EventDate "2024.02.24"]
[EventType "swiss"]
[EventCountry "ROU"]
[SourceTitle "playchess.com"]
[Source "ChessBase"]
[SourceQuality "1"]
[TimeControl "40/5400+30:900+30"]

{[%evp 17,85,43,32,22,21,23,33,27,28,29,43,49,62,45,40,19,25,0,17,17,14,6,25,33,28,47,54,43,52,46,40,20,22,7,9,-43,-31,-27,-48,-39,-43,-50,21,25,23,47,24,37,41,-7,85,0,0,-5,-6,-22,-25,-26,-18,-67,-70,-101,-97,-93,-106,-100,-43,-36,18,26]} 1. e4 {[%emt 0:00:08]} e5 {[%emt 0:00:28]} 2. Nf3 {[%emt 0:00:05]} Nc6 {[%emt 0:00:24]} 3. Bb5 {[%emt 0:00:04]} a6 {[%emt 0:00:24]} 4. Ba4 {[%emt 0:00:04]} d6 {[%emt 0:00:22]} 5. c3 {[%emt 0:00:15]} Bd7 {[%emt 0:00:31]} 6. d4 {[%emt 0:00:24]} g6 {[%emt 0:02:35]} 7. O-O {[%emt 0:01:35]} Bg7 {[%emt 0:00:25]} 8. Re1 {[%emt 0:06:03]} b5 {[%emt 0:01:22]} 9. Bb3 {[%emt 0:00:15]} Nf6 {[%emt 0:00:11]} 10. h3 {[%emt 0:03:09]} O-O {[%emt 0:00:23]} 11. Nbd2 {[%emt 0:03:58][%cal Bb1d2,Bd2f1,Bf1g3][%mdl 32]} Re8 {[%emt 0:10:21]} 12. Bc2 {[%emt 0:04:49] Weiß steht etwas besser.} Qb8 {[%emt 0:12:17]} 13. Nf1 {[%emt 0:20:41]} Qb7 {[%emt 0:03:12]} 14. Ng3 {[%emt 0:05:00]} Rad8 {[%emt 0:09:01]} 15. b3 {[%emt 0:23:52]} a5 {[%emt 0:20:30]} 16. d5 {[%emt 0:01:39]} Nb8 {[%emt 0:00:07]} 17. Bg5 {[%emt 0:00:59]} Na6 {[%emt 0:02:06]} 18. Qd2 {[%emt 0:02:25]} c6 {[%emt 0:01:32]} 19. c4 {[%emt 0:00:10]} bxc4 {[%emt 0:01:16]} 20. bxc4 {[%emt 0:00:06]} (20. Qxa5 $2 Nb4 (20... cxd5 21. bxc4 d4 22. Reb1 $17) 21. bxc4 Ra8 $19 (21... Nxc2 $2 22. Rab1 $19) (21... Nxc2 $2 22. Rab1 $19)) 20... cxd5 {[%emt 0:02:12]} 21. cxd5 {[%emt 0:04:21]} Rc8 {[%emt 0:03:04]} 22. Rab1 {[%emt 0:01:03]} Qa7 {[%emt 0:01:43]} 23. Be3 {[%emt 0:03:04]} Nc5 {[%emt 0:00:50]} 24. Qc1 {[%emt 0:02:44]} Qa6 {[%emt 0:02:28][%cal Oc5e4]} 25. Qa3 {[%emt 0:00:37]} Bb5 {[%emt 0:04:30]} 26. Nh4 {[%emt 0:06:57]} (26. Rb2 $11) 26... Bd3 $15 {[%emt 0:08:37]} 27. Bxd3 {[%emt 0:01:46]} Nxd3 {[%emt 0:00:07]} 28. Rb6 {[%emt 0:01:59]} Qc4 {[%emt 0:00:37]} 29. Rd1 {[%emt 0:00:58]} Nf4 {[%emt 0:02:09]} (29... Nb4 $1 $15) 30. Rc1 $11 {[%emt 0:01:06]} (30. Qxd6 Nxe4 31. Nxe4 Ne2+ 32. Kh2 Qxe4 $19) 30... Ne2+ {[%emt 0:00:46]} 31. Nxe2 {[%emt 0:00:05]} Qxe2 {[%emt 0:00:04]} 32. Rbc6 {[%emt 0:04:52]} (32. Qxd6 $2 {verliert.} Rxc1+ (32... Qxa2 33. Rxc8 Rxc8 34. Rb8 $11) (32... Nxe4 33. Qa3 $17) 33. Bxc1 Qd1+ (33... Qxe4 34. Nf3 $17) (33... Nxe4 $2 34. Qc6 $19) 34. Kh2 Qxc1 $19) 32... Rb8 {[%emt 0:02:14]} 33. Qxd6 {[%emt 0:01:12]} (33. R6c4 $14 {ist überlegen.}) 33... Rbd8 {[%emt 0:01:45] [#]} (33... Nxe4 $11 {hält das Gleichgewicht.} 34. Qc7 Qd3) 34. Qc7 {[%emt 0:00:32]} ({Günstiger ist} 34. Qa3 $1 $16) 34... Nxe4 {[%emt 0:01:13][%cal Bf6e4,Be4d6,Bd6f5][%mdl 32]} 35. d6 $132 {[%emt 0:00:17][%mdl 2048] Nf3 ist eine echte Drohung. Weiss leistet Widerstand. Das Brett brennt.} Qd3 {[%emt 0:00:43][%cal Re4d6]} 36. Qxa5 {[%emt 0:00:41]} (36. Nf3 {wäre vielleicht verwirrender.} Rxd6 37. Ng5 Rd7 38. Qb6) 36... Nxd6 {[%emt 0:01:04]} 37. Nf3 {[%emt 0:00:26]} Nf5 {[%emt 0:02:04]} 38. Bb6 {[%emt 0:00:25]} (38. R6c3 $11 {scheint genauer.} Qe4 39. Bd2) 38... Ra8 $15 {[%emt 0:01:34]} 39. Qc5 {[%emt 0:00:33]} e4 $1 {[%emt 0:01:29]} ({Viel schlechter ist} 39... Rxa2 $6 40. Rc8 Ra8 41. Rxa8 Rxa8 42. Nxe5 $11) 40. Ne1 {[%emt 0:00:00]} Qd2 {[%emt 0:00:00][%cal Og7d4] [#] Weiss muss nun ...Bd4! beachten.} 41. Qc2 {[%emt 0:07:39]} Qf4 {[%emt 0:06:14]} (41... Rxa2 $17 42. Qxd2 Rxd2) 42. Rc4 {[%emt 0:04:06]} Qg5 {[%emt 0:08:17]} (42... Ra6 $15 43. Rc8 Qe5 44. Rxe8+ Qxe8) 43. Rxe4 {[%emt 0:01:46] Gewichteter Fehlerwert: Weiß=0.16 (sehr präzise) /Schwarz=0.13 (sehr präzise) .  Fehler:       	Weiß=4     	Schwarz=4     Ungenau:       	Weiß=1     	---        OK:         	Weiß=11    	Schwarz=12    Bester:       	Weiß=3     	Schwarz=3     Stark:        	---       	Schwarz=1} 1/2-1/2